[Event "*** Titled Tuesday Blitz"]
[Site "Chess.com"]
[Date "2021.02.16"]
[Round "4"]
[White "Chernov_Alexander_A"]
[Black "Khnykin_Nikolay"]
[Result "1-0"]
[WhiteElo "2295"]
[BlackElo "2074"]
[TimeControl "180+1"]
[EndTime "10:42:01 PST"]
[Termination "Chernov_Alexander_A won on time"]

1. e4 {[%clk 0:03:00.9]} 1... c5 {[%clk 0:02:59.5]} 2. Nf3 {[%clk 0:03:00.2]}
2... e6 {[%clk 0:02:55.9]} 3. c3 {[%clk 0:02:59.8]} 3... Nc6 {[%clk 0:02:53.4]}
4. d4 {[%clk 0:02:59.2]} 4... d5 {[%clk 0:02:49]} 5. exd5 {[%clk 0:02:56.8]}
5... exd5 {[%clk 0:02:48.6]} 6. Bb5 {[%clk 0:02:56.3]} 6... Nf6 {[%clk
0:02:45.7]} 7. O-O {[%clk 0:02:56]} 7... Be7 {[%clk 0:02:44.8]} 8. dxc5 {[%clk
0:02:55.7]} 8... O-O {[%clk 0:02:40.9]} 9. b4 {[%clk 0:02:53.6]} 9... a5 {[%clk
0:02:37.2]} 10. Bxc6 {[%clk 0:02:47.4]} 10... bxc6 {[%clk 0:02:36.1]} 11. Nd4
{[%clk 0:02:45.4]} 11... Bb7 {[%clk 0:02:31.9]} 12. Nd2 {[%clk 0:02:37.9]} 12...
Qc7 {[%clk 0:02:15.4]} 13. N2b3 {[%clk 0:02:00.3]} 13... Ne4 {[%clk 0:02:04.7]}
14. Bd2 {[%clk 0:01:48.6]} 14... a4 {[%clk 0:02:00.1]} 15. Nc1 {[%clk
0:01:47.9]} 15... Bh4 {[%clk 0:01:27.9]} 16. g3 {[%clk 0:01:31.9]} 16... Bf6
{[%clk 0:01:24.7]} 17. Qc2 {[%clk 0:01:12.9]} 17... Rfe8 {[%clk 0:01:15.6]} 18.
Nce2 {[%clk 0:01:06.2]} 18... Ba6 {[%clk 0:01:03.4]} 19. Rfe1 {[%clk 0:01:04.2]}
19... Bg5 {[%clk 0:00:34.2]} 20. Bxg5 {[%clk 0:00:42.7]} 20... Nxg5 {[%clk
0:00:30.7]} 21. Nf4 {[%clk 0:00:37.9]} 21... Re4 {[%clk 0:00:15.9]} 22. Rxe4
{[%clk 0:00:33.1]} 22... Nxe4 {[%clk 0:00:14]} 23. f3 {[%clk 0:00:29.4]} 23...
Ng5 {[%clk 0:00:12.8]} 24. h4 {[%clk 0:00:25.5]} 24... Ne6 {[%clk 0:00:11.4]}
25. Nfxe6 {[%clk 0:00:21.1]} 25... fxe6 {[%clk 0:00:10.3]} 26. Kg2 {[%clk
0:00:18.1]} 26... Re8 {[%clk 0:00:08.3]} 27. Re1 {[%clk 0:00:16.7]} 27... e5
{[%clk 0:00:06.5]} 28. Nf5 {[%clk 0:00:16]} 28... Qf7 {[%clk 0:00:05.7]} 29. Nd6
{[%clk 0:00:15.2]} 29... Qe6 {[%clk 0:00:03.9]} 30. Nxe8 {[%clk 0:00:14.9]}
30... Qxe8 {[%clk 0:00:04.2]} 31. Qd2 {[%clk 0:00:14.2]} 31... Bb7 {[%clk
0:00:03.5]} 32. Qd4 {[%clk 0:00:11.7]} 1-0

[Event "*** Titled Tuesday Blitz"]
[Site "Chess.com"]
[Date "2021.02.16"]
[Round "4"]
[White "Violord"]
[Black "ViditYT"]
[Result "0-1"]
[WhiteElo "2703"]
[BlackElo "3014"]
[TimeControl "180+1"]
[EndTime "10:42:02 PST"]
[Termination "ViditYT won by checkmate"]

1. e4 {[%clk 0:02:59.3]} 1... c5 {[%clk 0:02:58.1]} 2. Nf3 {[%clk 0:02:58.8]}
2... d6 {[%clk 0:02:58.6]} 3. Bb5+ {[%clk 0:02:57.7]} 3... Nd7 {[%clk
0:02:58.5]} 4. O-O {[%clk 0:02:57.2]} 4... a6 {[%clk 0:02:57.8]} 5. Bxd7+ {[%clk
0:02:56.9]} 5... Bxd7 {[%clk 0:02:58.7]} 6. c3 {[%clk 0:02:56.8]} 6... c4 {[%clk
0:02:42.9]} 7. b3 {[%clk 0:02:52.9]} 7... b5 {[%clk 0:02:42.7]} 8. Na3 {[%clk
0:02:44.3]} 8... Rc8 {[%clk 0:02:40.6]} 9. Qe2 {[%clk 0:02:43.6]} 9... Qc7
{[%clk 0:02:40.4]} 10. Bb2 {[%clk 0:02:37.4]} 10... e5 {[%clk 0:02:31.2]} 11. d4
{[%clk 0:02:31.8]} 11... Nf6 {[%clk 0:02:22.2]} 12. bxc4 {[%clk 0:02:20.9]}
12... bxc4 {[%clk 0:02:22.3]} 13. Nc2 {[%clk 0:02:20]} 13... Be7 {[%clk
0:02:16.8]} 14. Ba3 {[%clk 0:02:19.9]} 14... Be6 {[%clk 0:01:41.7]} 15. Rfe1
{[%clk 0:02:10.4]} 15... h6 {[%clk 0:01:16]} 16. h3 {[%clk 0:02:07.4]} 16... Nh5
{[%clk 0:01:00]} 17. Reb1 {[%clk 0:01:25.3]} 17... Nf4 {[%clk 0:00:59.5]} 18.
Qe3 {[%clk 0:01:25.2]} 18... Nd3 {[%clk 0:00:57.1]} 19. Nce1 {[%clk 0:01:19.7]}
19... Nf4 {[%clk 0:00:48.1]} 20. Rb2 {[%clk 0:01:07.7]} 20... Rb8 {[%clk
0:00:35.3]} 21. Rab1 {[%clk 0:00:54.4]} 21... Rxb2 {[%clk 0:00:34.7]} 22. Rxb2
{[%clk 0:00:55.1]} 22... f6 {[%clk 0:00:35.1]} 23. h4 {[%clk 0:00:48.2]} 23...
O-O {[%clk 0:00:34]} 24. g3 {[%clk 0:00:47]} 24... Nh5 {[%clk 0:00:29.2]} 25. d5
{[%clk 0:00:40.5]} 25... Bc8 {[%clk 0:00:27]} 26. Qb6 {[%clk 0:00:40.6]} 26...
Qd7 {[%clk 0:00:27.3]} 27. Qc6 {[%clk 0:00:28.4]} 27... Qg4 {[%clk 0:00:27.2]}
28. Bxd6 {[%clk 0:00:28]} 28... Bxd6 {[%clk 0:00:24.5]} 29. Qxd6 {[%clk
0:00:27.8]} 29... Qxe4 {[%clk 0:00:25.2]} 30. Rb8 {[%clk 0:00:23.9]} 30... Qg4
{[%clk 0:00:12.8]} 31. Qe7 {[%clk 0:00:18]} 31... Nf4 {[%clk 0:00:11.8]} 32. d6
{[%clk 0:00:17.9]} 32... Ne2+ {[%clk 0:00:09.2]} 33. Kf1 {[%clk 0:00:16.6]}
33... Nxc3 {[%clk 0:00:09.2]} 34. Qc7 {[%clk 0:00:10.8]} 34... Qh3+ {[%clk
0:00:08.3]} 35. Kg1 {[%clk 0:00:10.2]} 35... Ne2# {[%clk 0:00:08.3]} 0-1

[Event "*** Titled Tuesday Blitz"]
[Site "Chess.com"]
[Date "2021.02.16"]
[Round "4"]
[White "francyIM"]
[Black "WPWPWP-2015"]
[Result "1-0"]
[WhiteElo "2686"]
[BlackElo "2486"]
[TimeControl "180+1"]
[EndTime "10:42:06 PST"]
[Termination "francyIM won on time"]

1. e4 {[%clk 0:02:49.8]} 1... e5 {[%clk 0:02:58.2]} 2. Nf3 {[%clk 0:02:46.1]}
2... Nc6 {[%clk 0:02:57.6]} 3. c3 {[%clk 0:02:45.1]} 3... Nf6 {[%clk 0:02:56.7]}
4. d4 {[%clk 0:02:34.9]} 4... d6 {[%clk 0:02:40.5]} 5. dxe5 {[%clk 0:02:33.3]}
5... Nxe5 {[%clk 0:02:39.9]} 6. Nxe5 {[%clk 0:02:33.4]} 6... dxe5 {[%clk
0:02:40]} 7. Qxd8+ {[%clk 0:02:33.7]} 7... Kxd8 {[%clk 0:02:40.9]} 8. f3 {[%clk
0:02:33.8]} 8... Bc5 {[%clk 0:02:35.8]} 9. Bc4 {[%clk 0:02:32.9]} 9... Ke7
{[%clk 0:02:34.6]} 10. Nd2 {[%clk 0:02:30.3]} 10... Be6 {[%clk 0:02:32.5]} 11.
Bxe6 {[%clk 0:02:28.9]} 11... Kxe6 {[%clk 0:02:32.4]} 12. b4 {[%clk 0:02:28.8]}
12... Bb6 {[%clk 0:02:15.1]} 13. Nc4 {[%clk 0:02:10.4]} 13... Ne8 {[%clk
0:02:10.3]} 14. a4 {[%clk 0:02:09.1]} 14... Nd6 {[%clk 0:02:09.7]} 15. Nxd6
{[%clk 0:02:02.5]} 15... cxd6 {[%clk 0:02:09.1]} 16. a5 {[%clk 0:02:01.1]} 16...
Bd8 {[%clk 0:02:07.3]} 17. Be3 {[%clk 0:02:00.4]} 17... a6 {[%clk 0:02:03]} 18.
O-O-O {[%clk 0:01:59.2]} 18... Rc8 {[%clk 0:02:02.3]} 19. Kb2 {[%clk 0:01:59.2]}
19... Be7 {[%clk 0:01:57.5]} 20. Kb3 {[%clk 0:01:56.4]} 20... f5 {[%clk
0:01:55.8]} 21. Rc1 {[%clk 0:01:53]} 21... g5 {[%clk 0:01:51]} 22. exf5+ {[%clk
0:01:41.6]} 22... Kxf5 {[%clk 0:01:50.6]} 23. Rcd1 {[%clk 0:01:39.8]} 23... h5
{[%clk 0:01:38.2]} 24. c4 {[%clk 0:01:36.8]} 24... Ke6 {[%clk 0:01:31.2]} 25.
Rhe1 {[%clk 0:01:35]} 25... h4 {[%clk 0:01:25.9]} 26. Re2 {[%clk 0:01:34]} 26...
h3 {[%clk 0:01:19.9]} 27. g3 {[%clk 0:01:28.7]} 27... Kf5 {[%clk 0:00:59.5]} 28.
f4 {[%clk 0:01:21.9]} 28... gxf4 {[%clk 0:00:56.9]} 29. gxf4 {[%clk 0:01:22.8]}
29... Rhg8 {[%clk 0:00:48.9]} 30. fxe5 {[%clk 0:01:20]} 30... dxe5 {[%clk
0:00:48.3]} 31. Rd5 {[%clk 0:01:19.2]} 31... Rg2 {[%clk 0:00:43.8]} 32. Rdd2
{[%clk 0:01:01]} 32... Rcg8 {[%clk 0:00:37.2]} 33. b5 {[%clk 0:00:49.5]} 33...
Rxe2 {[%clk 0:00:29]} 34. Rxe2 {[%clk 0:00:46.9]} 34... Rg2 {[%clk 0:00:25.7]}
35. Rxg2 {[%clk 0:00:47]} 35... hxg2 {[%clk 0:00:25.3]} 36. c5 {[%clk
0:00:47.9]} 36... Ke4 {[%clk 0:00:15.4]} 37. Bg1 {[%clk 0:00:36.3]} 37... Kd5
{[%clk 0:00:05.5]} 38. c6 {[%clk 0:00:36.5]} 38... bxc6 {[%clk 0:00:02.2]} 39.
bxa6 {[%clk 0:00:26.4]} 39... Bc5 {[%clk 0:00:02.8]} 40. a7 {[%clk 0:00:26.5]}
40... Bxg1 {[%clk 0:00:01.6]} 41. a8=Q {[%clk 0:00:26.6]} 41... Bxh2 {[%clk
0:00:02.5]} 42. Qg8+ {[%clk 0:00:26]} 42... Ke4 {[%clk 0:00:02.7]} 43. Qxg2+
{[%clk 0:00:26.9]} 1-0

[Event "*** Titled Tuesday Blitz"]
[Site "Chess.com"]
[Date "2021.02.16"]
[Round "4"]
[White "m_ezat"]
[Black "AsaHoffmann"]
[Result "0-1"]
[WhiteElo "2474"]
[BlackElo "2352"]
[TimeControl "180+1"]
[EndTime "10:42:06 PST"]
[Termination "AsaHoffmann won by checkmate"]

1. d4 {[%clk 0:03:00.9]} 1... Nf6 {[%clk 0:02:58.9]} 2. c4 {[%clk 0:02:53.9]}
2... c5 {[%clk 0:02:58.3]} 3. d5 {[%clk 0:02:47.7]} 3... e5 {[%clk 0:02:54.6]}
4. Nc3 {[%clk 0:02:46.8]} 4... d6 {[%clk 0:02:54.4]} 5. e4 {[%clk 0:02:44.4]}
5... Be7 {[%clk 0:02:54]} 6. Be2 {[%clk 0:02:43.4]} 6... Nbd7 {[%clk 0:02:53.1]}
7. Nf3 {[%clk 0:02:41.4]} 7... Nf8 {[%clk 0:02:52.8]} 8. O-O {[%clk 0:02:40.8]}
8... Ng6 {[%clk 0:02:52.4]} 9. Ne1 {[%clk 0:02:41.4]} 9... O-O {[%clk
0:02:51.8]} 10. Nd3 {[%clk 0:02:41.1]} 10... a6 {[%clk 0:02:51.3]} 11. Rb1
{[%clk 0:02:32.3]} 11... b5 {[%clk 0:02:50.7]} 12. b3 {[%clk 0:02:20.3]} 12...
b4 {[%clk 0:02:49.5]} 13. Na4 {[%clk 0:02:20.3]} 13... Nxe4 {[%clk 0:02:48.6]}
14. Qc2 {[%clk 0:02:17.5]} 14... f5 {[%clk 0:02:47.7]} 15. f4 {[%clk 0:02:15.9]}
15... Bf6 {[%clk 0:02:43.8]} 16. fxe5 {[%clk 0:02:12.7]} 16... Nxe5 {[%clk
0:02:41.7]} 17. Nf4 {[%clk 0:02:12.2]} 17... Qe7 {[%clk 0:02:34.5]} 18. Nb6
{[%clk 0:02:08.7]} 18... Rb8 {[%clk 0:02:31.6]} 19. Nxc8 {[%clk 0:02:08.6]}
19... Rbxc8 {[%clk 0:02:31.8]} 20. Ne6 {[%clk 0:02:08.7]} 20... Nc3 {[%clk
0:02:19]} 21. Nxf8 {[%clk 0:02:05]} 21... Nxb1 {[%clk 0:02:07.5]} 22. Nxh7
{[%clk 0:01:57]} 22... Nc3 {[%clk 0:02:04.2]} 23. Nxf6+ {[%clk 0:01:49.1]} 23...
Qxf6 {[%clk 0:02:03.9]} 24. Bb2 {[%clk 0:01:41.7]} 24... Nf7 {[%clk 0:01:48.8]}
25. Bd3 {[%clk 0:00:54.6]} 25... g6 {[%clk 0:01:47.2]} 26. Bxc3 {[%clk
0:00:48.2]} 26... bxc3 {[%clk 0:01:44.6]} 27. Rc1 {[%clk 0:00:46.1]} 27... Qd4+
{[%clk 0:01:44.2]} 28. Kh1 {[%clk 0:00:45.3]} 28... Re8 {[%clk 0:01:44]} 29. h3
{[%clk 0:00:43.4]} 29... Ne5 {[%clk 0:01:40.5]} 30. Be2 {[%clk 0:00:40.7]} 30...
Kf7 {[%clk 0:01:12.1]} 31. Qxc3 {[%clk 0:00:39]} 31... Qf2 {[%clk 0:01:07.9]}
32. Qd2 {[%clk 0:00:32.9]} 32... Ng4 {[%clk 0:01:02.7]} 33. Rc2 {[%clk 0:00:27]}
33... Ne3 {[%clk 0:00:51]} 34. Bf3 {[%clk 0:00:21.3]} 34... Qf1+ {[%clk
0:00:42.2]} 35. Kh2 {[%clk 0:00:20.9]} 35... Nxc2 {[%clk 0:00:34.5]} 36. Qxc2
{[%clk 0:00:21.1]} 36... Qe1 {[%clk 0:00:33.7]} 37. b4 {[%clk 0:00:16.3]} 37...
cxb4 {[%clk 0:00:29.9]} 38. c5 {[%clk 0:00:16.2]} 38... f4 {[%clk 0:00:28.1]}
39. g4 {[%clk 0:00:03.2]} 39... Qg3+ {[%clk 0:00:26]} 40. Kh1 {[%clk 0:00:03.3]}
40... Qxf3+ {[%clk 0:00:25.6]} 41. Kg1 {[%clk 0:00:03.1]} 41... Re1+ {[%clk
0:00:24.3]} 42. Kh2 {[%clk 0:00:02.9]} 42... Qg3# {[%clk 0:00:23.9]} 0-1

[Event "*** Titled Tuesday Blitz"]
[Site "Chess.com"]
[Date "2021.02.16"]
[Round "4"]
[White "Rozum_Ivan"]
[Black "FairChess_on_YouTube"]
[Result "1-0"]
[WhiteElo "2765"]
[BlackElo "2928"]
[TimeControl "180+1"]
[EndTime "10:42:09 PST"]
[Termination "Rozum_Ivan won by resignation"]

1. c4 {[%clk 0:03:00.5]} 1... e6 {[%clk 0:02:56.8]} 2. Nc3 {[%clk 0:02:57.5]}
2... c5 {[%clk 0:02:55.4]} 3. Nf3 {[%clk 0:02:53.1]} 3... a6 {[%clk 0:02:55.7]}
4. g3 {[%clk 0:02:48]} 4... Nf6 {[%clk 0:02:55.2]} 5. Bg2 {[%clk 0:02:47.9]}
5... Be7 {[%clk 0:02:54.1]} 6. O-O {[%clk 0:02:47.7]} 6... O-O {[%clk
0:02:54.2]} 7. e4 {[%clk 0:02:45.4]} 7... Nc6 {[%clk 0:02:52.5]} 8. d4 {[%clk
0:02:42.4]} 8... cxd4 {[%clk 0:02:50.5]} 9. Nxd4 {[%clk 0:02:43.3]} 9... d6
{[%clk 0:02:47.3]} 10. b3 {[%clk 0:02:34.5]} 10... Bd7 {[%clk 0:02:44.3]} 11.
Bb2 {[%clk 0:02:34.4]} 11... Nxd4 {[%clk 0:02:43.8]} 12. Qxd4 {[%clk 0:02:33.6]}
12... Bc6 {[%clk 0:02:44.4]} 13. Qd2 {[%clk 0:02:06]} 13... Qa5 {[%clk
0:02:38.6]} 14. Rad1 {[%clk 0:02:04.2]} 14... Qh5 {[%clk 0:02:37.9]} 15. Rfe1
{[%clk 0:01:56.9]} 15... Rac8 {[%clk 0:02:36.3]} 16. Nd5 {[%clk 0:01:50.4]}
16... Bxd5 {[%clk 0:02:34.7]} 17. exd5 {[%clk 0:01:50.6]} 17... e5 {[%clk
0:02:35.1]} 18. f4 {[%clk 0:01:40]} 18... Rfe8 {[%clk 0:02:09.3]} 19. fxe5
{[%clk 0:01:34.8]} 19... Ng4 {[%clk 0:02:05.5]} 20. Bf3 {[%clk 0:01:14.2]} 20...
dxe5 {[%clk 0:02:05.6]} 21. Qe2 {[%clk 0:00:35.4]} 21... Bc5+ {[%clk 0:02:01.1]}
22. Kh1 {[%clk 0:00:34.3]} 22... f5 {[%clk 0:01:57.7]} 23. Bxg4 {[%clk
0:00:34.7]} 23... fxg4 {[%clk 0:01:56.5]} 24. d6 {[%clk 0:00:35.1]} 24... Rcd8
{[%clk 0:01:47.5]} 25. d7 {[%clk 0:00:32.6]} 25... Re7 {[%clk 0:01:47.2]} 26.
Rd5 {[%clk 0:00:32.8]} 26... Rexd7 {[%clk 0:01:46.4]} 27. Rxe5 {[%clk 0:00:24]}
27... Qg6 {[%clk 0:01:22.5]} 28. Rxc5 {[%clk 0:00:20.5]} 28... Rd2 {[%clk
0:01:23]} 29. Qe5 {[%clk 0:00:15.4]} 29... Qf7 {[%clk 0:01:00.6]} 30. Qxg7+
{[%clk 0:00:10]} 30... Qxg7 {[%clk 0:01:01.5]} 31. Bxg7 {[%clk 0:00:10.3]} 31...
Kxg7 {[%clk 0:01:01.1]} 32. Rg5+ {[%clk 0:00:10.5]} 32... Kf6 {[%clk 0:00:56.3]}
33. Rxg4 {[%clk 0:00:11.4]} 33... Rxa2 {[%clk 0:00:56.5]} 34. Rf4+ {[%clk
0:00:11.4]} 34... Kg6 {[%clk 0:00:53.1]} 35. Rg4+ {[%clk 0:00:07.4]} 35... Kf6
{[%clk 0:00:51.3]} 36. Rf1+ {[%clk 0:00:06.9]} 36... Ke5 {[%clk 0:00:46.8]} 37.
Rh4 {[%clk 0:00:07.8]} 37... Rd7 {[%clk 0:00:46.8]} 38. Kg1 {[%clk 0:00:07]}
38... Rb2 {[%clk 0:00:45.6]} 39. Rh5+ {[%clk 0:00:06.8]} 39... Ke4 {[%clk
0:00:41.9]} 40. Rf4+ {[%clk 0:00:05.9]} 40... Ke3 {[%clk 0:00:34.7]} 41. Re5+
{[%clk 0:00:06.2]} 41... Kd3 {[%clk 0:00:33.7]} 42. Rd5+ {[%clk 0:00:05.7]}
42... Rxd5 {[%clk 0:00:33.9]} 43. cxd5 {[%clk 0:00:06.6]} 43... Rxb3 {[%clk
0:00:31]} 44. Rf3+ {[%clk 0:00:06.4]} 44... Kc4 {[%clk 0:00:26.1]} 45. Rxb3
{[%clk 0:00:07.3]} 45... b5 {[%clk 0:00:26.8]} 46. d6 {[%clk 0:00:06.2]} 1-0

[Event "*** Titled Tuesday Blitz"]
[Site "Chess.com"]
[Date "2021.02.16"]
[Round "4"]
[White "digilik"]
[Black "DamianoLew95"]
[Result "0-1"]
[WhiteElo "2247"]
[BlackElo "2595"]
[TimeControl "180+1"]
[EndTime "10:42:09 PST"]
[Termination "DamianoLew95 won on time"]

1. e4 {[%clk 0:03:00.9]} 1... c5 {[%clk 0:02:57]} 2. Nf3 {[%clk 0:03:01.1]} 2...
d6 {[%clk 0:02:55.2]} 3. d4 {[%clk 0:03:01.4]} 3... cxd4 {[%clk 0:02:54.9]} 4.
Nxd4 {[%clk 0:03:02.3]} 4... Nf6 {[%clk 0:02:53.9]} 5. Nc3 {[%clk 0:03:02.4]}
5... Nc6 {[%clk 0:02:53.3]} 6. f3 {[%clk 0:02:57.9]} 6... e5 {[%clk 0:02:52.2]}
7. Nb3 {[%clk 0:02:57.5]} 7... Be7 {[%clk 0:02:52.2]} 8. Be3 {[%clk 0:02:57.8]}
8... a5 {[%clk 0:02:47.4]} 9. Bb5 {[%clk 0:02:52.7]} 9... O-O {[%clk 0:02:41.3]}
10. Qd2 {[%clk 0:02:51]} 10... Be6 {[%clk 0:02:35.6]} 11. O-O-O {[%clk
0:02:41.3]} 11... Na7 {[%clk 0:02:31.3]} 12. Bxa7 {[%clk 0:02:32.7]} 12... Rxa7
{[%clk 0:02:29.7]} 13. Kb1 {[%clk 0:02:23.5]} 13... b6 {[%clk 0:02:22]} 14. Nd5
{[%clk 0:02:07.5]} 14... Bxd5 {[%clk 0:02:08]} 15. exd5 {[%clk 0:02:08.4]} 15...
a4 {[%clk 0:02:08.1]} 16. Nc1 {[%clk 0:02:07.9]} 16... Ra5 {[%clk 0:02:07.6]}
17. Bc6 {[%clk 0:01:46.6]} 17... Nd7 {[%clk 0:01:53.7]} 18. Nd3 {[%clk
0:01:35.8]} 18... Nc5 {[%clk 0:01:51.9]} 19. Nxc5 {[%clk 0:01:23.4]} 19... bxc5
{[%clk 0:01:51.2]} 20. c4 {[%clk 0:01:09.6]} 20... Bf6 {[%clk 0:01:44.2]} 21. a3
{[%clk 0:01:05.8]} 21... Qb6 {[%clk 0:01:31.9]} 22. Bb5 {[%clk 0:00:57.9]} 22...
Rb8 {[%clk 0:01:20.8]} 23. Qd3 {[%clk 0:00:53.8]} 23... e4 {[%clk 0:01:13.7]}
24. fxe4 {[%clk 0:00:50.1]} 24... Rxb5 {[%clk 0:01:06.4]} 25. cxb5 {[%clk
0:00:51]} 25... Qa5 {[%clk 0:01:05.7]} 26. Rhf1 {[%clk 0:00:41.9]} 26... Be5
{[%clk 0:00:39.5]} 27. Rf2 {[%clk 0:00:22.9]} 27... Rxb5 {[%clk 0:00:37.4]} 28.
Rdf1 {[%clk 0:00:22.7]} 28... Rb7 {[%clk 0:00:27.5]} 29. Qh3 {[%clk 0:00:15.3]}
29... Qa8 {[%clk 0:00:17.7]} 30. Qd3 {[%clk 0:00:07.6]} 30... Qb8 {[%clk
0:00:15.3]} 31. Qc2 {[%clk 0:00:01.5]} 31... f6 {[%clk 0:00:12.9]} 32. Ka1
{[%clk 0:00:01.5]} 32... Rb3 {[%clk 0:00:11.8]} 33. Kb1 {[%clk 0:00:01.8]} 33...
Rxa3 {[%clk 0:00:10.2]} 34. Kc1 {[%clk 0:00:02.5]} 34... Rb3 {[%clk 0:00:08.9]}
35. Qd2 {[%clk 0:00:01.7]} 35... Qb5 {[%clk 0:00:07.1]} 0-1

[Event "*** Titled Tuesday Blitz"]
[Site "Chess.com"]
[Date "2021.02.16"]
[Round "4"]
[White "Aleksey_Sorokin"]
[Black "gross-aleks"]
[Result "1/2-1/2"]
[WhiteElo "2762"]
[BlackElo "2578"]
[TimeControl "180+1"]
[EndTime "10:42:10 PST"]
[Termination "Game drawn by repetition"]

1. d4 {[%clk 0:02:59.8]} 1... Nf6 {[%clk 0:02:59.2]} 2. c4 {[%clk 0:02:58.7]}
2... e6 {[%clk 0:02:59.5]} 3. Nf3 {[%clk 0:02:16]} 3... b6 {[%clk 0:02:58.4]} 4.
a3 {[%clk 0:02:14.5]} 4... Bb7 {[%clk 0:02:55.5]} 5. Nc3 {[%clk 0:02:14.7]} 5...
Ne4 {[%clk 0:02:54.6]} 6. Nxe4 {[%clk 0:02:14.6]} 6... Bxe4 {[%clk 0:02:54.7]}
7. Bf4 {[%clk 0:02:15.4]} 7... Bb7 {[%clk 0:02:53.7]} 8. e3 {[%clk 0:02:13.6]}
8... Be7 {[%clk 0:02:53.2]} 9. Bd3 {[%clk 0:02:13.8]} 9... d6 {[%clk 0:02:52.6]}
10. h4 {[%clk 0:02:14]} 10... h6 {[%clk 0:02:51.3]} 11. Qe2 {[%clk 0:02:12.7]}
11... Nd7 {[%clk 0:02:50.6]} 12. O-O-O {[%clk 0:02:12.4]} 12... c5 {[%clk
0:02:34.1]} 13. g4 {[%clk 0:02:12.1]} 13... Qc7 {[%clk 0:02:29.7]} 14. h5 {[%clk
0:02:02.1]} 14... b5 {[%clk 0:02:19.1]} 15. Kb1 {[%clk 0:01:56.4]} 15... bxc4
{[%clk 0:02:14.7]} 16. Bxc4 {[%clk 0:01:56.4]} 16... cxd4 {[%clk 0:02:14.3]} 17.
exd4 {[%clk 0:01:46.6]} 17... Rb8 {[%clk 0:02:12.4]} 18. Rh3 {[%clk 0:01:44]}
18... Nb6 {[%clk 0:02:00.5]} 19. Bb5+ {[%clk 0:01:43.1]} 19... Kf8 {[%clk
0:01:55.4]} 20. g5 {[%clk 0:01:42.1]} 20... Nd5 {[%clk 0:01:51.3]} 21. Bd2
{[%clk 0:01:39.7]} 21... Qb6 {[%clk 0:01:49.5]} 22. gxh6 {[%clk 0:01:34.6]}
22... gxh6 {[%clk 0:01:48.9]} 23. Ne5 {[%clk 0:01:30.1]} 23... Bc8 {[%clk
0:01:37.3]} 24. Nxf7 {[%clk 0:00:57.6]} 24... Kxf7 {[%clk 0:01:36.1]} 25. Rb3
{[%clk 0:00:55.8]} 25... Ba6 {[%clk 0:01:30.7]} 26. Re1 {[%clk 0:00:43.5]} 26...
Bxb5 {[%clk 0:01:12.5]} 27. Qxe6+ {[%clk 0:00:43.1]} 27... Ke8 {[%clk
0:01:10.6]} 28. Ka1 {[%clk 0:00:17.1]} 28... Qxd4 {[%clk 0:01:09]} 29. Bc3
{[%clk 0:00:15]} 29... Qc4 {[%clk 0:01:07.7]} 30. Rb4 {[%clk 0:00:12.4]} 30...
Qc6 {[%clk 0:00:27.5]} 31. Bxh8 {[%clk 0:00:12.1]} 31... Rb7 {[%clk 0:00:26.4]}
32. Rbe4 {[%clk 0:00:10.8]} 32... Bd3 {[%clk 0:00:19.7]} 33. Rd4 {[%clk
0:00:10.7]} 33... Bc4 {[%clk 0:00:18.5]} 34. Bf6 {[%clk 0:00:10.7]} 34... Qb6
{[%clk 0:00:17.2]} 35. Rxd5 {[%clk 0:00:09.1]} 35... Qb3 {[%clk 0:00:16]} 36.
Qg8+ {[%clk 0:00:09.1]} 36... Kd7 {[%clk 0:00:15.3]} 37. Rxe7+ {[%clk
0:00:09.4]} 37... Kc6 {[%clk 0:00:16.2]} 38. Rxd6+ {[%clk 0:00:07.4]} 38... Kxd6
{[%clk 0:00:15.6]} 39. Qd8+ {[%clk 0:00:07.9]} 39... Kc6 {[%clk 0:00:15.8]} 40.
Qc8+ {[%clk 0:00:08.2]} 40... Kd6 {[%clk 0:00:14.6]} 41. Qd8+ {[%clk 0:00:08]}
41... Kc6 {[%clk 0:00:14.4]} 42. Qc8+ {[%clk 0:00:05.7]} 42... Kd6 {[%clk
0:00:14]} 43. Qd8+ {[%clk 0:00:06.2]} 1/2-1/2

[Event "*** Titled Tuesday Blitz"]
[Site "Chess.com"]
[Date "2021.02.16"]
[Round "4"]
[White "sbouchet"]
[Black "Sadykov_Ramil"]
[Result "0-1"]
[WhiteElo "2385"]
[BlackElo "2550"]
[TimeControl "180+1"]
[EndTime "10:42:10 PST"]
[Termination "Sadykov_Ramil won by resignation"]

1. e4 {[%clk 0:03:00.9]} 1... c5 {[%clk 0:02:59.3]} 2. c3 {[%clk 0:03:00.6]}
2... Nf6 {[%clk 0:02:56.5]} 3. e5 {[%clk 0:02:59.7]} 3... Nd5 {[%clk 0:02:52.8]}
4. d4 {[%clk 0:02:59.4]} 4... cxd4 {[%clk 0:02:46.3]} 5. Nf3 {[%clk 0:02:59]}
5... d6 {[%clk 0:02:41.8]} 6. Bc4 {[%clk 0:02:38.5]} 6... Nb6 {[%clk 0:02:30]}
7. Bb3 {[%clk 0:02:38.5]} 7... dxc3 {[%clk 0:02:23.3]} 8. Nxc3 {[%clk
0:02:35.1]} 8... e6 {[%clk 0:02:22.6]} 9. O-O {[%clk 0:02:32.7]} 9... Nc6 {[%clk
0:02:21.4]} 10. Qe2 {[%clk 0:02:24.5]} 10... d5 {[%clk 0:02:04]} 11. Bg5 {[%clk
0:02:16.3]} 11... Be7 {[%clk 0:02:04.1]} 12. h4 {[%clk 0:02:15.1]} 12... h6
{[%clk 0:02:02]} 13. Bf4 {[%clk 0:02:11.3]} 13... Bxh4 {[%clk 0:01:36.2]} 14.
Nxh4 {[%clk 0:02:04.2]} 14... Qxh4 {[%clk 0:01:37.1]} 15. g3 {[%clk 0:02:03]}
15... Qe7 {[%clk 0:01:16.2]} 16. Nb5 {[%clk 0:01:57.1]} 16... O-O {[%clk
0:01:15.2]} 17. Rad1 {[%clk 0:01:53.5]} 17... a6 {[%clk 0:01:09.3]} 18. Nd6
{[%clk 0:01:53.5]} 18... f6 {[%clk 0:00:57.8]} 19. Rfe1 {[%clk 0:01:10.5]} 19...
fxe5 {[%clk 0:00:50.6]} 20. Bxe5 {[%clk 0:01:09.9]} 20... Nxe5 {[%clk
0:00:51.1]} 21. Qxe5 {[%clk 0:01:10.4]} 21... Qf6 {[%clk 0:00:51]} 22. Rd2
{[%clk 0:00:38.5]} 22... Qxe5 {[%clk 0:00:35.2]} 23. Rxe5 {[%clk 0:00:39.4]}
23... Rf6 {[%clk 0:00:35.6]} 24. Rde2 {[%clk 0:00:37.1]} 24... Bd7 {[%clk
0:00:33.7]} 25. Nxb7 {[%clk 0:00:35.9]} 25... Rc8 {[%clk 0:00:31.7]} 26. Rc2
{[%clk 0:00:30.4]} 26... Rxc2 {[%clk 0:00:28.5]} 27. Bxc2 {[%clk 0:00:31.3]}
27... Nc4 {[%clk 0:00:29]} 28. Re2 {[%clk 0:00:20.7]} 28... Nxb2 {[%clk
0:00:28.2]} 29. Nc5 {[%clk 0:00:21.3]} 29... Bc8 {[%clk 0:00:25]} 30. Bb3 {[%clk
0:00:17.6]} 30... Nc4 {[%clk 0:00:19.6]} 31. Bxc4 {[%clk 0:00:17.8]} 31... dxc4
{[%clk 0:00:20.5]} 32. Rc2 {[%clk 0:00:18.1]} 32... Rf7 {[%clk 0:00:18.4]} 33.
Ne4 {[%clk 0:00:14.2]} 33... Rc7 {[%clk 0:00:17.4]} 34. Rc3 {[%clk 0:00:12.6]}
34... e5 {[%clk 0:00:16.4]} 35. Kf1 {[%clk 0:00:10.5]} 35... Bf5 {[%clk
0:00:14.9]} 36. Nd6 {[%clk 0:00:04.8]} 36... Bd3+ {[%clk 0:00:15.2]} 37. Ke1
{[%clk 0:00:05.4]} 37... Kf8 {[%clk 0:00:15.5]} 38. g4 {[%clk 0:00:02.5]} 38...
g6 {[%clk 0:00:14]} 39. f4 {[%clk 0:00:01.8]} 39... exf4 {[%clk 0:00:13.6]} 0-1